[Event "Titled Tuesday Blitz June 28 Late 2022"]
[White "Florescu, Codrut-Constantin"]
[Black "Goncalves, Davi Sulzbacher"]
[WhiteFideId "1202200"]
[BlackFideId "2154510"]
[WhiteElo "2629"]
[BlackElo "2455"]
[Result "0-1"]
[Round "06"]
[TimeControl "180+1"]
[Date "2022.06.29"]
[WhiteClock "0:01:00"]
[BlackClock "0:01:20"]

1. d4 {[%clk 0:03:00]}  Nf6 {[%clk 0:02:59]} 2. Nf3 {[%clk 0:03:01]}  c5 {[%clk 0:03:00]} 3. d5 {[%clk 0:03:00]}  e6 {[%clk 0:03:00]} 4. c4 {[%clk 0:02:43]}  exd5 {[%clk 0:03:00]} 5. cxd5 {[%clk 0:02:43]}  d6 {[%clk 0:03:01]} 6. Nc3 {[%clk 0:02:42]}  g6 {[%clk 0:03:01]} 7. Nd2 {[%clk 0:02:43]}  Bg7 {[%clk 0:03:02]} 8. e4 {[%clk 0:02:43]}  O-O {[%clk 0:03:03]} 9. Be2 {[%clk 0:02:43]}  Re8 {[%clk 0:03:04]} 10. O-O {[%clk 0:02:42]}  Nbd7 {[%clk 0:03:04]} 11. f3 {[%clk 0:02:42]}  a6 {[%clk 0:03:04]} 12. a4 {[%clk 0:02:41]}  Rb8 {[%clk 0:03:04]} 13. Nc4 {[%clk 0:02:40]}  Nb6 {[%clk 0:03:05]} 14. Ne3 {[%clk 0:02:39]}  Na8 {[%clk 0:03:04]} 15. Nc4 {[%clk 0:02:25]}  Nb6 {[%clk 0:03:04]} 16. Na3 {[%clk 0:02:25]}  Nxa4 {[%clk 0:02:58]} 17. Nxa4 {[%clk 0:02:17]}  b5 {[%clk 0:02:58]} 18. Nc3 {[%clk 0:02:08]}  b4 {[%clk 0:02:58]} 19. Nc4 {[%clk 0:02:04]}  bxc3 {[%clk 0:02:59]} 20. bxc3 {[%clk 0:02:05]}  Nh5 {[%clk 0:02:37]} 21. Ra3 {[%clk 0:01:49]}  f5 {[%clk 0:02:29]} 22. exf5 {[%clk 0:01:43]}  Bxf5 {[%clk 0:01:56]} 23. g4 {[%clk 0:01:39]}  Rb1 {[%clk 0:01:56]} 24. Bd3 {[%clk 0:01:28]}  Rxc1 {[%clk 0:01:54]} 25. Qxc1 {[%clk 0:01:24]}  Bxd3 {[%clk 0:01:55]} 26. gxh5 {[%clk 0:01:19]}  Bxc4 {[%clk 0:01:53]} 27. Re1 {[%clk 0:01:19]}  Be5 {[%clk 0:01:42]} 28. f4 {[%clk 0:01:09]}  Qh4 {[%clk 0:01:19]} 29. fxe5 {[%clk 0:01:04]}  Qg4+ {[%clk 0:01:19]} 30. Kf2 {[%clk 0:01:02]}  Rf8+ {[%clk 0:01:20]} 31. Ke3 {[%clk 0:01:00]}  Qf4# {[%clk 0:01:20]} 0-1


[Site "https://www.chess.com"]

[Event "Titled Tuesday Blitz June 28 Late 2022"]
[White "Flynn, Jacob"]
[Black "Vlassov, Nikolai"]
[WhiteFideId "2509393"]
[BlackFideId "4103360"]
[WhiteElo "1896"]
[BlackElo "2407"]
[Result "1-0"]
[Round "06"]
[TimeControl "180+1"]
[Date "2022.06.29"]
[WhiteClock "0:00:29"]
[BlackClock "0:00:08"]

1. d4 {[%clk 0:03:00]}  Nf6 {[%clk 0:02:59]} 2. c4 {[%clk 0:03:01]}  Nc6 {[%clk 0:02:57]} 3. Nf3 {[%clk 0:02:56]}  e6 {[%clk 0:02:56]} 4. g3 {[%clk 0:02:56]}  Bb4+ {[%clk 0:02:53]} 5. Bd2 {[%clk 0:02:55]}  a5 {[%clk 0:02:53]} 6. Bg2 {[%clk 0:02:55]}  d6 {[%clk 0:02:53]} 7. O-O {[%clk 0:02:55]}  e5 {[%clk 0:02:53]} 8. d5 {[%clk 0:02:28]}  Nb8 {[%clk 0:02:52]} 9. Qc2 {[%clk 0:02:13]}  O-O {[%clk 0:02:48]} 10. e4 {[%clk 0:02:09]}  c6 {[%clk 0:02:47]} 11. Ne1 {[%clk 0:02:04]}  cxd5 {[%clk 0:02:47]} 12. cxd5 {[%clk 0:02:04]}  Bc5 {[%clk 0:02:32]} 13. Nd3 {[%clk 0:02:02]}  Bb6 {[%clk 0:02:26]} 14. Na3 {[%clk 0:02:00]}  Bd7 {[%clk 0:02:13]} 15. Nc4 {[%clk 0:01:59]}  Bc7 {[%clk 0:02:14]} 16. a4 {[%clk 0:01:53]}  b5 {[%clk 0:02:12]} 17. axb5 {[%clk 0:01:53]}  Bxb5 {[%clk 0:02:12]} 18. Rfc1 {[%clk 0:01:44]}  Bxc4 {[%clk 0:01:58]} 19. Qxc4 {[%clk 0:01:41]}  Bb6 {[%clk 0:01:59]} 20. Bf3 {[%clk 0:01:28]}  Na6 {[%clk 0:01:53]} 21. Kg2 {[%clk 0:01:27]}  Nc5 {[%clk 0:01:46]} 22. Nxc5 {[%clk 0:01:24]}  Bxc5 {[%clk 0:01:45]} 23. Ra4 {[%clk 0:01:16]}  Qb6 {[%clk 0:01:42]} 24. Be1 {[%clk 0:01:09]}  Qxb2 {[%clk 0:01:38]} 25. Rca1 {[%clk 0:01:08]}  Nd7 {[%clk 0:01:29]} 26. R1a2 {[%clk 0:01:07]}  Qb1 {[%clk 0:01:19]} 27. Bxa5 {[%clk 0:01:05]}  g6 {[%clk 0:00:43]} 28. Qe2 {[%clk 0:00:50]}  Bd4 {[%clk 0:00:36]} 29. Bc7 {[%clk 0:00:44]}  Rxa4 {[%clk 0:00:32]} 30. Rxa4 {[%clk 0:00:44]}  Bc5 {[%clk 0:00:25]} 31. Ra6 {[%clk 0:00:42]}  f5 {[%clk 0:00:14]} 32. Bxd6 {[%clk 0:00:33]}  Rf6 {[%clk 0:00:08]} 33. Bxc5 {[%clk 0:00:29]} 1-0


[Site "https://www.chess.com"]

[Event "Titled Tuesday Blitz June 28 Late 2022"]
[White "Gatterer, Florian"]
[Black "Leenhouts, Koen"]
[WhiteFideId "811688"]
[BlackFideId "1008439"]
[WhiteElo "2218"]
[BlackElo "2409"]
[Result "0-1"]
[Round "06"]
[TimeControl "180+1"]
[Date "2022.06.29"]
[WhiteClock "0:00:01"]
[BlackClock "0:00:15"]

1. d4 {[%clk 0:03:00]}  Nf6 {[%clk 0:02:57]} 2. Nf3 {[%clk 0:03:00]}  e6 {[%clk 0:02:57]} 3. g3 {[%clk 0:03:00]}  d5 {[%clk 0:02:56]} 4. Bg2 {[%clk 0:03:00]}  Be7 {[%clk 0:02:57]} 5. O-O {[%clk 0:02:58]}  O-O {[%clk 0:02:57]} 6. c4 {[%clk 0:02:58]}  c6 {[%clk 0:02:57]} 7. Qc2 {[%clk 0:02:52]}  Nbd7 {[%clk 0:02:56]} 8. Nbd2 {[%clk 0:02:52]}  b6 {[%clk 0:02:56]} 9. e4 {[%clk 0:02:53]}  Bb7 {[%clk 0:02:52]} 10. cxd5 {[%clk 0:02:49]}  cxd5 {[%clk 0:02:52]} 11. e5 {[%clk 0:02:49]}  Ne4 {[%clk 0:02:46]} 12. Nxe4 {[%clk 0:02:49]}  dxe4 {[%clk 0:02:47]} 13. Nd2 {[%clk 0:02:44]}  Rc8 {[%clk 0:02:39]} 14. Qd1 {[%clk 0:02:43]}  f5 {[%clk 0:02:33]} 15. exf6 {[%clk 0:02:17]}  Nxf6 {[%clk 0:02:32]} 16. Nb3 {[%clk 0:02:08]}  a5 {[%clk 0:02:29]} 17. Be3 {[%clk 0:01:59]}  a4 {[%clk 0:02:20]} 18. Nd2 {[%clk 0:01:59]}  b5 {[%clk 0:02:21]} 19. Rc1 {[%clk 0:01:50]}  Qd5 {[%clk 0:02:20]} 20. b3 {[%clk 0:01:42]}  a3 {[%clk 0:02:08]} 21. Rxc8 {[%clk 0:01:34]}  Rxc8 {[%clk 0:02:06]} 22. f3 {[%clk 0:01:34]}  exf3 {[%clk 0:01:51]} 23. Bxf3 {[%clk 0:01:32]}  Qd7 {[%clk 0:01:51]} 24. Qe2 {[%clk 0:00:58]}  Nd5 {[%clk 0:01:44]} 25. Ne4 {[%clk 0:00:48]}  Rc2 {[%clk 0:01:22]} 26. Qd3 {[%clk 0:00:37]}  Nxe3 {[%clk 0:01:14]} 27. Qxe3 {[%clk 0:00:30]}  Rxa2 {[%clk 0:01:14]} 28. Bg4 {[%clk 0:00:26]}  Qd5 {[%clk 0:01:04]} 29. Nf6+ {[%clk 0:00:19]}  Bxf6 {[%clk 0:01:04]} 30. Bxe6+ {[%clk 0:00:19]}  Kf8 {[%clk 0:00:58]} 31. Bxd5 {[%clk 0:00:18]}  Bxd5 {[%clk 0:00:59]} 32. Rf2 {[%clk 0:00:18]}  Ra1+ {[%clk 0:00:52]} 33. Rf1 {[%clk 0:00:18]}  Rxf1+ {[%clk 0:00:50]} 34. Kxf1 {[%clk 0:00:17]}  a2 {[%clk 0:00:51]} 35. Qc3 {[%clk 0:00:13]}  Bxb3 {[%clk 0:00:46]} 36. Kf2 {[%clk 0:00:12]}  Bc4 {[%clk 0:00:45]} 37. Ke3 {[%clk 0:00:12]}  Kf7 {[%clk 0:00:41]} 38. Qa3 {[%clk 0:00:11]}  b4 {[%clk 0:00:32]} 39. Qa8 {[%clk 0:00:10]}  b3 {[%clk 0:00:29]} 40. Qb7+ {[%clk 0:00:10]}  Be7 {[%clk 0:00:26]} 41. Qf3+ {[%clk 0:00:09]}  Kg8 {[%clk 0:00:22]} 42. Qa8+ {[%clk 0:00:05]}  Bf8 {[%clk 0:00:22]} 43. d5 {[%clk 0:00:03]}  b2 {[%clk 0:00:20]} 44. Qa4 {[%clk 0:00:01]}  b1=Q {[%clk 0:00:19]} 45. Qxc4 {[%clk 0:00:01]}  a1=Q {[%clk 0:00:18]} 46. d6+ {[%clk 0:00:01]}  Kh8 {[%clk 0:00:17]} 47. Qf7 {[%clk 0:00:01]}  Qc3+ {[%clk 0:00:15]} 48. Kf4 {[%clk 0:00:01]}  Qf1+ {[%clk 0:00:15]} 0-1


[Site "https://www.chess.com"]

[Event "Titled Tuesday Blitz June 28 Late 2022"]
[White "Gubajdullin, Alexei"]
[Black "So, Wesley"]
[WhiteFideId "4141202"]
[BlackFideId "5202213"]
[WhiteElo "2280"]
[BlackElo "2742"]
[Result "0-1"]
[Round "06"]
[TimeControl "180+1"]
[Date "2022.06.28"]
[WhiteClock "0:00:08"]
[BlackClock "0:00:36"]

1. d4 {[%clk 0:03:00]}  Nf6 {[%clk 0:02:59]} 2. Nf3 {[%clk 0:03:00]}  d5 {[%clk 0:02:59]} 3. Bf4 {[%clk 0:03:00]}  c5 {[%clk 0:02:59]} 4. e3 {[%clk 0:03:00]}  Nc6 {[%clk 0:02:59]} 5. Nbd2 {[%clk 0:03:00]}  e6 {[%clk 0:02:57]} 6. c3 {[%clk 0:02:59]}  cxd4 {[%clk 0:02:57]} 7. exd4 {[%clk 0:02:59]}  Nh5 {[%clk 0:02:57]} 8. Be3 {[%clk 0:02:58]}  Bd6 {[%clk 0:02:55]} 9. g3 {[%clk 0:02:55]}  O-O {[%clk 0:02:50]} 10. Bg2 {[%clk 0:02:55]}  f5 {[%clk 0:02:50]} 11. Nb3 {[%clk 0:02:54]}  f4 {[%clk 0:02:37]} 12. Bd2 {[%clk 0:02:54]}  Bd7 {[%clk 0:02:32]} 13. O-O {[%clk 0:02:53]}  Nf6 {[%clk 0:02:26]} 14. Nc5 {[%clk 0:02:46]}  fxg3 {[%clk 0:02:21]} 15. hxg3 {[%clk 0:02:34]}  Bxc5 {[%clk 0:02:20]} 16. dxc5 {[%clk 0:02:34]}  Ne4 {[%clk 0:02:21]} 17. Be3 {[%clk 0:02:34]}  Qe7 {[%clk 0:02:21]} 18. b4 {[%clk 0:02:11]}  Nxc3 {[%clk 0:02:18]} 19. Qd3 {[%clk 0:02:11]}  Ne4 {[%clk 0:02:17]} 20. b5 {[%clk 0:02:11]}  Nd8 {[%clk 0:02:01]} 21. Ne5 {[%clk 0:02:08]}  Be8 {[%clk 0:02:00]} 22. Rac1 {[%clk 0:01:58]}  Rf5 {[%clk 0:01:53]} 23. Bd4 {[%clk 0:01:44]}  a6 {[%clk 0:01:51]} 24. a4 {[%clk 0:01:12]}  axb5 {[%clk 0:01:42]} 25. axb5 {[%clk 0:01:12]}  Qc7 {[%clk 0:01:42]} 26. f4 {[%clk 0:01:06]}  Nf7 {[%clk 0:01:32]} 27. c6 {[%clk 0:01:02]}  bxc6 {[%clk 0:01:29]} 28. bxc6 {[%clk 0:01:01]}  Rc8 {[%clk 0:01:19]} 29. Bxe4 {[%clk 0:00:35]}  dxe4 {[%clk 0:01:15]} 30. Qxe4 {[%clk 0:00:36]}  Nxe5 {[%clk 0:01:13]} 31. Bxe5 {[%clk 0:00:34]}  Bxc6 {[%clk 0:01:12]} 32. Bxc7 {[%clk 0:00:24]}  Bxe4 {[%clk 0:01:12]} 33. Be5 {[%clk 0:00:24]}  Rff8 {[%clk 0:01:12]} 34. Rxc8 {[%clk 0:00:22]}  Rxc8 {[%clk 0:01:13]} 35. Rd1 {[%clk 0:00:21]}  Bd5 {[%clk 0:01:10]} 36. Ra1 {[%clk 0:00:19]}  Rc2 {[%clk 0:01:07]} 37. Ra3 {[%clk 0:00:15]}  h5 {[%clk 0:01:06]} 38. Rc3 {[%clk 0:00:15]}  Rg2+ {[%clk 0:01:01]} 39. Kf1 {[%clk 0:00:15]}  Kh7 {[%clk 0:01:01]} 40. Bd4 {[%clk 0:00:13]}  Kh6 {[%clk 0:00:46]} 41. Be5 {[%clk 0:00:13]}  Kg6 {[%clk 0:00:42]} 42. Bd4 {[%clk 0:00:12]}  Kf5 {[%clk 0:00:38]} 43. Bxg7 {[%clk 0:00:12]}  h4 {[%clk 0:00:38]} 44. Rd3 {[%clk 0:00:09]}  Ra2 {[%clk 0:00:36]} 45. gxh4 {[%clk 0:00:08]}  Bc4 {[%clk 0:00:36]} 46. Ke1 {[%clk 0:00:08]}  Bxd3 {[%clk 0:00:36]} 0-1


[Site "https://www.chess.com"]

[Event "Titled Tuesday Blitz June 28 Late 2022"]
[White "Hoffmann, Asa"]
[Black "Rosenberg, Evan S"]
[WhiteFideId "2001470"]
[BlackFideId "2019299"]
[WhiteElo "2117"]
[BlackElo "2202"]
[Result "1-0"]
[Round "06"]
[TimeControl "180+1"]
[Date "2022.06.29"]
[WhiteClock "0:00:23"]
[BlackClock "0:00:08"]

1. d4 {[%clk 0:02:51]}  Nf6 {[%clk 0:02:59]} 2. Bg5 {[%clk 0:02:47]}  c5 {[%clk 0:02:58]} 3. d5 {[%clk 0:02:47]}  Ne4 {[%clk 0:02:51]} 4. Bc1 {[%clk 0:02:46]}  e6 {[%clk 0:02:47]} 5. Nf3 {[%clk 0:02:44]}  Qb6 {[%clk 0:02:15]} 6. Nc3 {[%clk 0:02:34]}  Nxc3 {[%clk 0:02:02]} 7. bxc3 {[%clk 0:02:33]}  c4 {[%clk 0:02:02]} 8. Be3 {[%clk 0:02:31]}  Bc5 {[%clk 0:01:53]} 9. Rb1 {[%clk 0:02:29]}  Qa5 {[%clk 0:01:51]} 10. Bxc5 {[%clk 0:02:24]}  Qxc5 {[%clk 0:01:49]} 11. e4 {[%clk 0:02:24]}  O-O {[%clk 0:01:48]} 12. Qd4 {[%clk 0:02:23]}  Qxd4 {[%clk 0:01:41]} 13. Nxd4 {[%clk 0:02:23]}  exd5 {[%clk 0:01:42]} 14. exd5 {[%clk 0:02:23]}  Re8+ {[%clk 0:01:42]} 15. Kd2 {[%clk 0:02:22]}  d6 {[%clk 0:01:31]} 16. Bxc4 {[%clk 0:02:21]}  b6 {[%clk 0:01:31]} 17. Bb5 {[%clk 0:02:16]}  Re5 {[%clk 0:01:30]} 18. Rhe1 {[%clk 0:02:14]}  Bb7 {[%clk 0:01:22]} 19. f4 {[%clk 0:02:10]}  Rxe1 {[%clk 0:01:20]} 20. Rxe1 {[%clk 0:02:10]}  Na6 {[%clk 0:01:17]} 21. Bxa6 {[%clk 0:01:57]}  Bxa6 {[%clk 0:01:17]} 22. Nf5 {[%clk 0:01:57]}  g6 {[%clk 0:00:55]} 23. Nxd6 {[%clk 0:01:54]}  Rd8 {[%clk 0:00:56]} 24. Re8+ {[%clk 0:01:53]}  Rxe8 {[%clk 0:00:57]} 25. Nxe8 {[%clk 0:01:53]}  Bc4 {[%clk 0:00:57]} 26. d6 {[%clk 0:01:52]}  Kf8 {[%clk 0:00:57]} 27. Nf6 {[%clk 0:01:34]}  Bxa2 {[%clk 0:00:55]} 28. Nxh7+ {[%clk 0:01:32]}  Ke8 {[%clk 0:00:55]} 29. Nf6+ {[%clk 0:01:32]}  Kd8 {[%clk 0:00:55]} 30. g4 {[%clk 0:01:30]}  a5 {[%clk 0:00:53]} 31. h4 {[%clk 0:01:30]}  a4 {[%clk 0:00:53]} 32. Kc1 {[%clk 0:01:30]}  a3 {[%clk 0:00:50]} 33. h5 {[%clk 0:01:28]}  gxh5 {[%clk 0:00:47]} 34. gxh5 {[%clk 0:01:27]}  Be6 {[%clk 0:00:38]} 35. Kb1 {[%clk 0:01:10]}  a2+ {[%clk 0:00:30]} 36. Kb2 {[%clk 0:01:08]}  b5 {[%clk 0:00:20]} 37. h6 {[%clk 0:01:07]}  Bf5 {[%clk 0:00:21]} 38. Nd5 {[%clk 0:00:49]}  Kd7 {[%clk 0:00:18]} 39. Ne3 {[%clk 0:00:45]}  Bh7 {[%clk 0:00:16]} 40. Kxa2 {[%clk 0:00:42]}  Kxd6 {[%clk 0:00:16]} 41. Kb3 {[%clk 0:00:42]}  Kc5 {[%clk 0:00:16]} 42. Ng4 {[%clk 0:00:38]}  Be4 {[%clk 0:00:10]} 43. Nf6 {[%clk 0:00:36]}  Bg6 {[%clk 0:00:06]} 44. h7 {[%clk 0:00:36]}  Bxh7 {[%clk 0:00:06]} 45. Nxh7 {[%clk 0:00:36]}  Kd5 {[%clk 0:00:07]} 46. Ng5 {[%clk 0:00:36]}  f6 {[%clk 0:00:06]} 47. Nh3 {[%clk 0:00:32]}  Ke4 {[%clk 0:00:05]} 48. Kb4 {[%clk 0:00:32]}  Kf5 {[%clk 0:00:04]} 49. Kxb5 {[%clk 0:00:32]}  Kg4 {[%clk 0:00:05]} 50. c4 {[%clk 0:00:30]}  Kxh3 {[%clk 0:00:04]} 51. c5 {[%clk 0:00:30]}  Kg4 {[%clk 0:00:05]} 52. c6 {[%clk 0:00:30]}  Kxf4 {[%clk 0:00:06]} 53. c7 {[%clk 0:00:30]}  f5 {[%clk 0:00:06]} 54. c8=Q {[%clk 0:00:29]}  Ke4 {[%clk 0:00:07]} 55. c4 {[%clk 0:00:29]}  f4 {[%clk 0:00:08]} 56. c5 {[%clk 0:00:29]}  f3 {[%clk 0:00:08]} 57. Qf8 {[%clk 0:00:28]}  Ke3 {[%clk 0:00:08]} 58. c6 {[%clk 0:00:28]}  f2 {[%clk 0:00:09]} 59. c7 {[%clk 0:00:27]}  Ke2 {[%clk 0:00:08]} 60. c8=Q {[%clk 0:00:26]}  f1=Q {[%clk 0:00:08]} 61. Qc4+ {[%clk 0:00:25]}  Ke3 {[%clk 0:00:08]} 62. Qe7+ {[%clk 0:00:23]} 1-0


[Site "https://www.chess.com"]

[Event "Titled Tuesday Blitz June 28 Late 2022"]
[White "Hua, Lefong"]
[Black "Kostiukov, Alexandr"]
[WhiteFideId "2602253"]
[BlackFideId "14108100"]
[WhiteElo "2596"]
[BlackElo "2202"]
[Result "1/2-1/2"]
[Round "06"]
[TimeControl "180+1"]
[Date "2022.06.29"]
[WhiteClock "0:00:17"]
[BlackClock "0:00:08"]

1. d4 {[%clk 0:03:00]}  g6 {[%clk 0:02:59]} 2. c4 {[%clk 0:03:01]}  Bg7 {[%clk 0:03:00]} 3. e4 {[%clk 0:03:01]}  d6 {[%clk 0:03:00]} 4. f4 {[%clk 0:03:00]}  e5 {[%clk 0:03:01]} 5. dxe5 {[%clk 0:03:00]}  dxe5 {[%clk 0:03:01]} 6. Qxd8+ {[%clk 0:03:01]}  Kxd8 {[%clk 0:03:01]} 7. Nc3 {[%clk 0:02:58]}  Nd7 {[%clk 0:02:52]} 8. Nf3 {[%clk 0:02:58]}  c6 {[%clk 0:02:49]} 9. fxe5 {[%clk 0:02:57]}  Nxe5 {[%clk 0:02:49]} 10. Bg5+ {[%clk 0:02:58]}  Kc7 {[%clk 0:02:33]} 11. Bf4 {[%clk 0:02:54]}  f6 {[%clk 0:02:32]} 12. O-O-O {[%clk 0:02:47]}  Be6 {[%clk 0:02:20]} 13. b3 {[%clk 0:02:40]}  Bh6 {[%clk 0:02:18]} 14. Bxh6 {[%clk 0:02:31]}  Nxh6 {[%clk 0:02:18]} 15. Nxe5 {[%clk 0:02:28]}  fxe5 {[%clk 0:02:18]} 16. Be2 {[%clk 0:02:28]}  Rhf8 {[%clk 0:02:11]} 17. Rhf1 {[%clk 0:02:28]}  Rxf1 {[%clk 0:02:04]} 18. Rxf1 {[%clk 0:02:27]}  Kd6 {[%clk 0:02:03]} 19. Kd2 {[%clk 0:02:21]}  Nf7 {[%clk 0:01:56]} 20. Bg4 {[%clk 0:02:13]}  Rd8 {[%clk 0:01:45]} 21. Ke3 {[%clk 0:02:03]}  Ke7 {[%clk 0:01:40]} 22. Bxe6 {[%clk 0:01:55]}  Kxe6 {[%clk 0:01:40]} 23. Rd1 {[%clk 0:01:35]}  Rxd1 {[%clk 0:01:35]} 24. Nxd1 {[%clk 0:01:36]}  a5 {[%clk 0:01:34]} 25. Nc3 {[%clk 0:01:34]}  Kd6 {[%clk 0:01:28]} 26. Na4 {[%clk 0:01:29]}  Nd8 {[%clk 0:01:23]} 27. c5+ {[%clk 0:01:26]}  Kc7 {[%clk 0:01:18]} 28. Kd3 {[%clk 0:01:20]}  Ne6 {[%clk 0:01:18]} 29. g3 {[%clk 0:01:20]}  Kd7 {[%clk 0:01:11]} 30. a3 {[%clk 0:01:19]}  Nd4 {[%clk 0:01:06]} 31. Kc3 {[%clk 0:01:10]}  Nb5+ {[%clk 0:00:57]} 32. Kb2 {[%clk 0:01:08]}  Nd4 {[%clk 0:00:52]} 33. Nb6+ {[%clk 0:01:06]}  Ke6 {[%clk 0:00:48]} 34. Nc4 {[%clk 0:01:06]}  Nf3 {[%clk 0:00:49]} 35. Nxa5 {[%clk 0:01:04]}  Nxh2 {[%clk 0:00:49]} 36. Nxb7 {[%clk 0:01:04]}  Nf1 {[%clk 0:00:44]} 37. a4 {[%clk 0:01:02]}  Kd7 {[%clk 0:00:42]} 38. g4 {[%clk 0:00:50]}  h5 {[%clk 0:00:42]} 39. gxh5 {[%clk 0:00:50]}  gxh5 {[%clk 0:00:42]} 40. Nd6 {[%clk 0:00:49]}  h4 {[%clk 0:00:36]} 41. Nf7 {[%clk 0:00:49]}  h3 {[%clk 0:00:15]} 42. Nxe5+ {[%clk 0:00:47]}  Kc7 {[%clk 0:00:15]} 43. Ng4 {[%clk 0:00:34]}  h2 {[%clk 0:00:12]} 44. Nxh2 {[%clk 0:00:32]}  Nxh2 {[%clk 0:00:12]} 45. Kc3 {[%clk 0:00:30]}  Nf3 {[%clk 0:00:11]} 46. b4 {[%clk 0:00:29]}  Kb7 {[%clk 0:00:09]} 47. Kd3 {[%clk 0:00:27]}  Ne5+ {[%clk 0:00:08]} 48. Kd4 {[%clk 0:00:27]}  Nf3+ {[%clk 0:00:08]} 49. Ke3 {[%clk 0:00:24]}  Ne5 {[%clk 0:00:09]} 50. Ke2 {[%clk 0:00:22]}  Ka6 {[%clk 0:00:08]} 51. Kd2 {[%clk 0:00:21]}  Kb7 {[%clk 0:00:08]} 52. Ke3 {[%clk 0:00:19]}  Kc7 {[%clk 0:00:08]} 53. Kd4 {[%clk 0:00:17]}  Nf3+ {[%clk 0:00:08]} 54. Kc3 {[%clk 0:00:16]}  Ne5 {[%clk 0:00:09]} 55. b5 {[%clk 0:00:16]}  Kb7 {[%clk 0:00:08]} 56. Kd4 {[%clk 0:00:15]}  Nf3+ {[%clk 0:00:08]} 57. Ke3 {[%clk 0:00:15]}  Ne5 {[%clk 0:00:08]} 58. Kf4 {[%clk 0:00:15]}  Nd3+ {[%clk 0:00:09]} 59. Kf5 {[%clk 0:00:15]}  Nxc5 {[%clk 0:00:09]} 60. e5 {[%clk 0:00:16]}  cxb5 {[%clk 0:00:08]} 61. axb5 {[%clk 0:00:16]}  Kb6 {[%clk 0:00:08]} 62. e6 {[%clk 0:00:16]}  Nxe6 {[%clk 0:00:08]} 63. Kxe6 {[%clk 0:00:17]}  Kxb5 {[%clk 0:00:08]} 1/2-1/2


[Site "https://www.chess.com"]

[Event "Titled Tuesday Blitz June 28 Late 2022"]
[White "Isajevsky, Anton"]
[Black "Svicevic, Rastko"]
[WhiteFideId "4142500"]
[BlackFideId "916315"]
[WhiteElo "2510"]
[BlackElo "2049"]
[Result "1-0"]
[Round "06"]
[TimeControl "180+1"]
[Date "2022.06.29"]
[WhiteClock "0:00:06"]
[BlackClock "0:00:05"]

1. e4 {[%clk 0:03:00]}  c6 {[%clk 0:02:59]} 2. Nc3 {[%clk 0:02:52]}  d5 {[%clk 0:03:00]} 3. Nf3 {[%clk 0:02:50]}  dxe4 {[%clk 0:03:00]} 4. Nxe4 {[%clk 0:02:50]}  Nf6 {[%clk 0:03:01]} 5. Nxf6+ {[%clk 0:02:48]}  exf6 {[%clk 0:03:02]} 6. d4 {[%clk 0:02:26]}  Bd6 {[%clk 0:03:03]} 7. Be2 {[%clk 0:02:12]}  O-O {[%clk 0:03:04]} 8. O-O {[%clk 0:02:12]}  Re8 {[%clk 0:03:04]} 9. Be3 {[%clk 0:02:03]}  Nd7 {[%clk 0:03:04]} 10. Re1 {[%clk 0:02:01]}  Nf8 {[%clk 0:03:04]} 11. Bf1 {[%clk 0:01:58]}  Qc7 {[%clk 0:03:04]} 12. h3 {[%clk 0:01:56]}  Bf5 {[%clk 0:03:03]} 13. c3 {[%clk 0:01:53]}  Rad8 {[%clk 0:02:57]} 14. Qb3 {[%clk 0:01:53]}  Be4 {[%clk 0:02:48]} 15. Nd2 {[%clk 0:01:51]}  Bg6 {[%clk 0:02:46]} 16. Nc4 {[%clk 0:01:48]}  Be7 {[%clk 0:02:15]} 17. a4 {[%clk 0:01:46]}  Ne6 {[%clk 0:02:15]} 18. Rad1 {[%clk 0:01:25]}  Nf4 {[%clk 0:02:12]} 19. Bxf4 {[%clk 0:01:16]}  Qxf4 {[%clk 0:02:12]} 20. Qxb7 {[%clk 0:01:17]}  Be4 {[%clk 0:02:06]} 21. g3 {[%clk 0:01:02]}  Qf3 {[%clk 0:02:06]} 22. Rxe4 {[%clk 0:00:57]}  Qxe4 {[%clk 0:02:06]} 23. Bg2 {[%clk 0:00:57]}  Qe2 {[%clk 0:02:03]} 24. Ne3 {[%clk 0:00:53]}  Bd6 {[%clk 0:01:54]} 25. Bf1 {[%clk 0:00:50]}  Qh5 {[%clk 0:01:44]} 26. g4 {[%clk 0:00:35]}  Qg5 {[%clk 0:01:34]} 27. Nf5 {[%clk 0:00:30]}  Bb8 {[%clk 0:01:24]} 28. Bc4 {[%clk 0:00:25]}  Rf8 {[%clk 0:00:56]} 29. Qxc6 {[%clk 0:00:23]}  Qf4 {[%clk 0:00:55]} 30. Qg2 {[%clk 0:00:23]}  g6 {[%clk 0:00:51]} 31. Ne3 {[%clk 0:00:15]}  Kg7 {[%clk 0:00:51]} 32. Nd5 {[%clk 0:00:15]}  Qd6 {[%clk 0:00:48]} 33. b3 {[%clk 0:00:15]}  Rfe8 {[%clk 0:00:48]} 34. h4 {[%clk 0:00:15]}  a5 {[%clk 0:00:48]} 35. g5 {[%clk 0:00:12]}  fxg5 {[%clk 0:00:38]} 36. hxg5 {[%clk 0:00:13]}  Re6 {[%clk 0:00:34]} 37. Nf6 {[%clk 0:00:11]}  Rxf6 {[%clk 0:00:32]} 38. gxf6+ {[%clk 0:00:12]}  Qxf6 {[%clk 0:00:33]} 39. Re1 {[%clk 0:00:12]}  h5 {[%clk 0:00:32]} 40. Qe4 {[%clk 0:00:10]}  h4 {[%clk 0:00:31]} 41. Qe7 {[%clk 0:00:07]}  Qxe7 {[%clk 0:00:15]} 42. Rxe7 {[%clk 0:00:07]}  Rf8 {[%clk 0:00:12]} 43. Kg2 {[%clk 0:00:08]}  Kf6 {[%clk 0:00:12]} 44. Re3 {[%clk 0:00:07]}  g5 {[%clk 0:00:11]} 45. Kh3 {[%clk 0:00:07]}  Rg8 {[%clk 0:00:10]} 46. Kg4 {[%clk 0:00:07]}  Kg6 {[%clk 0:00:11]} 47. Rf3 {[%clk 0:00:05]}  f5+ {[%clk 0:00:12]} 48. Rxf5 {[%clk 0:00:05]}  Bf4 {[%clk 0:00:08]} 49. Bxg8 {[%clk 0:00:04]}  h3 {[%clk 0:00:07]} 50. Rxf4 {[%clk 0:00:04]}  h2 {[%clk 0:00:06]} 51. Bd5 {[%clk 0:00:05]}  gxf4 {[%clk 0:00:05]} 52. Bh1 {[%clk 0:00:06]} 1-0


[Site "https://www.chess.com"]

[Event "Titled Tuesday Blitz June 28 Late 2022"]
[White "Jaracz, Pawel"]
[Black "Chen, Max"]
[WhiteFideId "1102222"]
[BlackFideId "2622440"]
[WhiteElo "2658"]
[BlackElo "2436"]
[Result "0-1"]
[Round "06"]
[TimeControl "180+1"]
[Date "2022.06.29"]
[WhiteClock "0:00:06"]
[BlackClock "0:00:11"]

1. e4 {[%clk 0:02:55]}  c5 {[%clk 0:02:56]} 2. Nf3 {[%clk 0:02:54]}  d6 {[%clk 0:02:55]} 3. d4 {[%clk 0:02:54]}  cxd4 {[%clk 0:02:54]} 4. Nxd4 {[%clk 0:02:55]}  Nf6 {[%clk 0:02:55]} 5. Nc3 {[%clk 0:02:55]}  a6 {[%clk 0:02:55]} 6. Bg5 {[%clk 0:02:56]}  Nbd7 {[%clk 0:02:54]} 7. f4 {[%clk 0:02:55]}  Qc7 {[%clk 0:02:54]} 8. Qf3 {[%clk 0:02:53]}  h6 {[%clk 0:02:54]} 9. Bxf6 {[%clk 0:02:53]}  Nxf6 {[%clk 0:02:53]} 10. f5 {[%clk 0:02:53]}  b6 {[%clk 0:02:42]} 11. O-O-O {[%clk 0:02:51]}  Bb7 {[%clk 0:02:43]} 12. Bd3 {[%clk 0:02:37]}  h5 {[%clk 0:02:31]} 13. Rhe1 {[%clk 0:02:36]}  Rc8 {[%clk 0:02:28]} 14. Kb1 {[%clk 0:02:34]}  Ng4 {[%clk 0:02:17]} 15. Nd5 {[%clk 0:02:30]}  Bxd5 {[%clk 0:02:10]} 16. exd5 {[%clk 0:02:30]}  Ne5 {[%clk 0:01:53]} 17. Qf1 {[%clk 0:02:29]}  b5 {[%clk 0:01:50]} 18. Nf3 {[%clk 0:02:16]}  Rh6 {[%clk 0:01:24]} 19. Be4 {[%clk 0:02:11]}  Rf6 {[%clk 0:01:08]} 20. Re3 {[%clk 0:02:10]}  g6 {[%clk 0:01:07]} 21. Rc3 {[%clk 0:02:09]}  Qd7 {[%clk 0:01:04]} 22. fxg6 {[%clk 0:01:56]}  fxg6 {[%clk 0:00:46]} 23. Rxc8+ {[%clk 0:01:48]}  Qxc8 {[%clk 0:00:46]} 24. Qe2 {[%clk 0:01:47]}  Nxf3 {[%clk 0:00:40]} 25. gxf3 {[%clk 0:01:44]}  g5 {[%clk 0:00:22]} 26. Rd3 {[%clk 0:01:23]}  Qc4 {[%clk 0:00:20]} 27. b3 {[%clk 0:01:12]}  Qc5 {[%clk 0:00:20]} 28. Qe1 {[%clk 0:01:04]}  Bg7 {[%clk 0:00:18]} 29. a3 {[%clk 0:01:00]}  g4 {[%clk 0:00:17]} 30. fxg4 {[%clk 0:00:54]}  hxg4 {[%clk 0:00:18]} 31. Ka2 {[%clk 0:00:52]}  Rf2 {[%clk 0:00:13]} 32. Re3 {[%clk 0:00:06]}  Rxc2+ {[%clk 0:00:11]} 0-1


[Site "https://www.chess.com"]